{"text_format":"1","workbook":"xlsx","n_sheets":2,"sheets":["Pasiūlymas","Subtiekėjai ir priedai"],"not_rendered":{"charts":0,"images":0,"macros":1,"external_links":0,"defined_names":0,"comments":0,"pivot_tables":0},"unopened":[],"bounds":{"document_bytes":16777216,"sheet_cells":100000,"rows_first":2000,"rows_last":500,"rows_between":2000,"halvings":0,"cell_chars":16384,"cell_head_chars":4096},"cells_cut":0,"cells_raw":0,"read":"whole","date_system":"1900"}

{"sheet":"Pasiūlymas","index":0,"n_rows":126,"n_cols":7,"rows_kept":126,"cut":false,"hidden":false,"merged":[[29,0,29,2],[29,3,29,5],[11,0,11,1],[11,2,11,5],[12,0,12,1],[12,2,12,5],[13,0,13,1],[13,2,13,5],[14,0,14,1],[14,2,14,5],[15,0,15,1],[15,2,15,5],[16,0,16,1],[16,2,16,5],[17,0,17,1],[17,2,17,5],[18,0,18,1],[18,2,18,5],[23,0,23,5],[19,0,19,1],[20,0,20,1],[19,2,19,5],[20,2,20,5],[22,0,22,5],[27,0,27,5],[28,0,28,5],[24,0,24,5],[25,0,25,5],[26,0,26,5]]}
[]
["PIRKIMO SĄLYGŲ PRIEDAS \"PASIŪLYMŲ FORMA\""]
[]
["ELEKTROS TIEKIMO IR GAMYBOS ĮRANGOS REMONTAS"]
[]
["Kam:","VšĮ LSMU Kauno ligoninė"]
[]
["Data:","2022-07-28"]
["Nr.:",96]
["Vieta:","Kaunas"]
[]
["Tiekėjo pavadinimas / Ūkio subjektų grupės nariai:",null,"UAB \"Eltecha\""]
["Tiekėjo kodas (-ai):",null,135148052]
["Tiekėjo adresas (-ai):",null,"Europos pr. 17, LT46329 "]
["Tiekėjo PVM mokėtojo kodas(-ai):",null,"LT351480515"]
["Tiekėjo / Ūkio subjektų grupės atsakingo partnerio sąskaitos numeris, banko pavadinimas ir banko kodas (-ai):",null,"A.s. LT244010042500031002 ; Luminor bankas AB; b.k. 40100"]
["Asmens atsakingo už pasiūlymą vardas, pavardė:",null,"Vincas Motejūnas"]
["Asmens atsakingo už pasiūlymą telefono numeris, el. pašto adresas:",null,"Tel. 837391446, mob.tel. 865518222,  El.p. vincas@eltecha.lt "]
["Tiekėjo / Ūkio subjektų grupės, laimėjimo atveju, pasirašančio sutartį asmens vardas, pavardė, pareigos:",null,"Vincas Motejūnas"]
["Tiekėjo / Ūkio subjektų grupės, laimėjimo atveju, už sutarties vykdymą atsakingo asmens vardas, pavardė, telefono numeris, elektroninio pašto adresas:",null,"Vincas Motejūnas; tel. 837391446; mob.tel. 865518222;  vincas@eltecha.lt "]
["(1) Tiekėjo / Ūkio subjektų grupės narių, (2) ūkio subjektų, kurių pajėgumais remiamasi, ir (3) jei pašalinimo pagrindai taikomi visiems subtiekėjams - subtiekėjų, kolegialaus priežiūros organo (Stebėtojų tarybos) ir (ar) kolegialaus valdymo organo (Valdybos) narių sąrašas (jei sudaryta) ir (ar) asmuo, kuriam suteikti VPĮ 46 str. 2 d. 2 p. numatyti įgaliojimai",null,null,null,null,null,{"$f":"IF((SUMPRODUCT(--(C21=\"\"))>0), \"Privaloma užpildyti, kai taikomi pašalinimo pagrindai\", \"\")","v":"Privaloma užpildyti, kai taikomi pašalinimo pagrindai"}]
[]
["Tiekėjo patvirtinimai:"]
["1. Šiuo pasiūlymu pažymime, kad sutinkame su visomi pirkimo sąlygomis, nustatytomis:"]
["1.1. viešojo pirkimo dokumentuose"]
["1.2. kituose pirkimo dokumentuose (jų paaiškinimuose, papildymuose)."]
["2. Patvirtiname, kad informacija ir duomenys, pateikti pasiūlyme, yra teisingi ir apima viską, ko reikia tinkamam sutarties įvykdymui"]
["3. Patvirtiname, kad jei pasiūlyme nenurodyti kolegialaus priežiūros/valdymo organų nariai, šie organai juridiniuose asmenyse nėra sudaryti (taikoma, kai pirkimo dokumentuose nustatyti pašalinimo pagrindai)."]
["4. Pasiūlymas galioja iki termino, nustatyto pirkimo dokumentuose."]
["5. Tais atvejais, kai pagal galiojančius teisės aktus tiekėjui nereikia mokėti PVM, jis nurodo priežastis, dėl kurių PVM nemoka:"]
["6. Tiekėjas kainas pateikia, nurodydamas ne daugiau skaičių po kablelio, nei leidžiama pirkimo dokumentuose."]
["1. DALIS","KABELIO REMONTAS JOSVAINIŲG. 2"]
[]
["Tiekėjo pasiūlymas:"]
["Nr.","Pavadinimas","Kiekis","Mato vienetas","Kaina be PVM, Eur","Suma be PVM, Eur"]
["1.","Kabelio remontas Josvainiųg. 2"]
["1.1.","Žemės kasimo darbai",2,"vnt.",90.05,{"$f":"IF(ISBLANK(E37),\"\", PRODUCT(C37,E37))","v":180.1}]
["1.1.1.","Siūlomas įkainis R33-100"]
["1.2.","Trinkelių dangos atstatymas",5,"kv. m",63.4,{"$f":"IF(ISBLANK(E39),\"\", PRODUCT(C39,E39))","v":317}]
["1.3.","0,4kV daugiau kaip 120mm2skerspiūvio kabelio remontas, montuojant dvi jungiamasias movas.",1,"vnt.",1311.27,{"$f":"IF(ISBLANK(E40),\"\", PRODUCT(C40,E40))","v":1311.27}]
["1.3.1.","Siūlomas įkainis R33-112"]
["1.4.","0,4 kV jėgos kabelio bandymas- gedimo vietos nustatymui.",1,"vnt.",487.78,{"$f":"IF(ISBLANK(E42),\"\", PRODUCT(C42,E42))","v":487.78}]
["1.4.1.","Siūlomas įkainis D1-432"]
["1.5.","0,4kV jungiamoji mova 150mm2",4,"kompl.",667.46,{"$f":"IF(ISBLANK(E44),\"\", PRODUCT(C44,E44))","v":2669.84}]
[null,null,null,null,"Suma be PVM",{"$f":"IF((COUNT(C37:C44)<>COUNT(F37:F44)),\"\", SUM(F37:F44))","v":4965.99},{"$f":"IF((COUNT(C37:C44)<>COUNT(F37:F44)),\"Neužpildytos visų objektų kainos\", \"\")","v":""}]
[null,null,null,null,"PVM suma",{"$f":"+F45*0.21","v":1042.8579}]
[null,null,null,null,"Suma su PVM",{"$f":"IF(ISBLANK(F46), \"\", SUM(F45:F46))","v":6008.8478999999998},"Dalies biudžetas su PVM: 6050 Eur"]
[]
[]
[]
["2. DALIS","ESAMŲ 0,4KV GALINIŲ MOVŲ AVARINĖS BŪKJLĖS LIKVIDAVIMAS"]
[]
["Tiekėjo pasiūlymas:"]
["Nr.","Pavadinimas","Kiekis","Mato vienetas","Kaina be PVM, Eur","Suma be PVM, Eur"]
["2.","ESAMŲ 0,4KV GALINIŲ MOVŲ AVARINĖS BŪKJLĖS LIKVIDAVIMAS"]
["2.1.","Termosusitraukiančių galinių movų iki 1kv įtampos 3 gyslų kabeliams su poieriaus  izoliacija montavimas kai kabelio gyslų skerspjūvio plotas 150-240mm2",8,"vnt.",95.46,{"$f":"IF(ISBLANK(E56),\"\", PRODUCT(C56,E56))","v":763.68}]
["2.1.1.","Siūlomas įkainis N21P-0136"]
["2.2.","Termosusitraukiančių galinių movų iki 1kv įtampos 3 gyslų kabeliams su poieriaus  izoliacija montavimas kai kabelio gyslų skerspjūvio plotas 70-120mm2",4,"vnt.",84.14,{"$f":"IF(ISBLANK(E58),\"\", PRODUCT(C58,E58))","v":336.56}]
["2.2.1.","Siūlomas įkainis N21P-0136"]
["2.3.","Kabelių vienvielių gyslų su antgaliais  prijungimas prie aaparatų gnybtų, kai kabelio gyslų skerspjūvio plotas daugiau kaip 150mm2 iki 185mm2",32,"vnt.",9.8000000000000007,{"$f":"IF(ISBLANK(E60),\"\", PRODUCT(C60,E60))","v":313.60000000000002}]
["2.3.1.","Siūlomas įkainis N21P-0161"]
["2.4.","Kabelių vienvielių gyslų su antgaliais  prijungimas prie aaparatų gnybtų, kai kabelio gyslų skerspjūvio plotas daugiau kaip 120mm2 iki 150mm2",16,"vnt.",9.58,{"$f":"IF(ISBLANK(E62),\"\", PRODUCT(C62,E62))","v":153.28}]
["2.4.1.","Siūlomas įkainis N21P-0161"]
["2.5.","Kabelio izoliacijos varžos matavimas",12,"vnt.",17.8,{"$f":"IF(ISBLANK(E64),\"\", PRODUCT(C64,E64))","v":213.60000000000002}]
["2.5.1.","Siūlomas įkainis D1-374-2"]
["2.6.","Laidų ir kabelių gyslų markiravimas",12,"vnt.",4.26,{"$f":"IF(ISBLANK(E66),\"\", PRODUCT(C66,E66))","v":51.12}]
["2.6.1.","Siūlomas įkainis D1-637"]
["2.7.","0,4kv galinė mova",12,"kompl.",156.61000000000001,{"$f":"IF(ISBLANK(E68),\"\", PRODUCT(C68,E68))","v":1879.3200000000002}]
[null,null,null,null,"Suma be PVM",{"$f":"IF((COUNT(C56:C68)<>COUNT(F56:F68)),\"\", SUM(F56:F68))","v":3711.1600000000003},{"$f":"IF((COUNT(C56:C68)<>COUNT(F56:F68)),\"Neužpildytos visų objektų kainos\", \"\")","v":""}]
[null,null,null,null,"PVM suma",{"$f":"+F69*0.21","v":779.34360000000004}]
[null,null,null,null,"Suma su PVM",{"$f":"IF(ISBLANK(F70), \"\", SUM(F69:F70))","v":4490.5036},"Dalies biudžetas su PVM: 4840 Eur"]
[]
[]
[]
["3. DALIS","TP-519 0.4KV ĮVADINIŲ KOMUTACINIŲ APARATŲ DEMONTAVIMAS-SUMONTAVIMAS"]
[]
["Tiekėjo pasiūlymas:"]
["Nr.","Pavadinimas","Kiekis","Mato vienetas","Kaina be PVM, Eur","Suma be PVM, Eur"]
["3.","TP-519 0.4kV įvadinių komutacinių aparatų demontavimas-sumontavimas"]
["3.1.","Daugiau kaip 100A automatinio jungiklio su šynomis demontavimas",3,"vnt.",58.59,{"$f":"IF(ISBLANK(E80),\"\", PRODUCT(C80,E80))","v":175.77}]
["3.1.1.","Siūlomas įkainis R33-162"]
["3.2.","Metaliniųpavienių atraminių konstrukcijų montavimas k8=1.05",3,"vnt.",158.12,{"$f":"IF(ISBLANK(E82),\"\", PRODUCT(C82,E82))","v":474.36}]
["3.2.1.","Siūlomas įkainis N21-157"]
["3.3.","Lanksčių įvadų montavimas",9,"vnt.",12.32,{"$f":"IF(ISBLANK(E84),\"\", PRODUCT(C84,E84))","v":110.88}]
["3.3.1.","Siūlomas įkainis N21-169"]
["3.4.","Iki 630A saugiklių kirtiklių blokų montavimas",3,"vnt.",113.63,{"$f":"IF(ISBLANK(E86),\"\", PRODUCT(C86,E86))","v":340.89}]
["3.4.1.","Siūlomas įkainis N21-210"]
["3.5.","Horizontalus saugiklių kirtiklių blokas 630A",3,"vnt.",211.21,{"$f":"IF(ISBLANK(E88),\"\", PRODUCT(C88,E88))","v":633.63}]
["3.6.","Jungtys 0,4kV 480A",9,"kompl.",168.14,{"$f":"IF(ISBLANK(E89),\"\", PRODUCT(C89,E89))","v":1513.2599999999998}]
["3.7.","Saugikliai 630A",9,"vnt.",14.64,{"$f":"IF(ISBLANK(E90),\"\", PRODUCT(C90,E90))","v":131.76}]
[null,null,null,null,"Suma be PVM",{"$f":"IF((COUNT(C80:C90)<>COUNT(F80:F90)),\"\", SUM(F80:F90))","v":3380.55},{"$f":"IF((COUNT(C80:C90)<>COUNT(F80:F90)),\"Neužpildytos visų objektų kainos\", \"\")","v":""}]
[null,null,null,null,"PVM suma",{"$f":"+F91*0.21","v":709.91550000000007}]
[null,null,null,null,"Suma su PVM",{"$f":"IF(ISBLANK(F92), \"\", SUM(F91:F92))","v":4090.4655000000002},"Dalies biudžetas su PVM: 4235 Eur"]
[]
[]
[]
["4. DALIS","AVARINIO  APŠVIETIMO INSTALIACIJOS MONTAVIMAS"]
[]
["Tiekėjo pasiūlymas:"]
["Nr.","Pavadinimas","Kiekis","Mato vienetas","Kaina be PVM, Eur","Suma be PVM, Eur"]
["4.","AVARINIO  APŠVIETIMO INSTALIACIJOS MONTAVIMAS"]
["4.1.","24 modulių paskirstymo skydelių surinkimas ir montavimas",1,"vnt.",335.83,{"$f":"IF(ISBLANK(E102),\"\", PRODUCT(C102,E102))","v":335.83}]
["4.2.","Dviejų trijų gyslų laidų tiesimas paruoštuose kanaluose, sienose ir perdenginiuose.",460,"m",3.12,1435.2]
["4.3.","Iki 25 mm skersmens  viniplasčių vamzdžių montavimas sienomis ir kolonomis.",420,"m",2.1800000000000002,915.6]
["4.4.","Kabelio tiesimas įrengtom konstrukcijom arba loviais  tvirtinant visu ilgiu, kai 1m kabelio masė iki 2kg.",20,"m",10.76,215.2]
["4.5.","Led šviestuvų montavimas pakabinamų lubų angose",24,"vnt.",64.78,1554.72]
["4.6.","laidų ir kabelių vienvielių gyslų iki 16mm2 skerspjūvio gyslų su antgaliais  prijungimas prie aparatų gnybtų",10,"vnt.",3.82,38.199999999999996]
["4.7.","Sieninio paskirstymo skydo prijungimas prie nepriklausomo nepertraukiamo energijos šaltinio.",4,"kompl.",98.33,393.32]
[null,null,null,null,"Suma be PVM",{"$f":"IF((COUNT(C102:C108)<>COUNT(F102:F108)),\"\", SUM(F102:F108))","v":4888.07},{"$f":"IF((COUNT(C102:C108)<>COUNT(F102:F108)),\"Neužpildytos visų objektų kainos\", \"\")","v":""}]
[null,null,null,null,"PVM suma",{"$f":"+F109*0.21","v":1026.4947}]
[null,null,null,null,"Suma su PVM",{"$f":"IF(ISBLANK(F110), \"\", SUM(F109:F110))","v":5914.5646999999999},"Dalies biudžetas su PVM: 6050 Eur"]
[]
[]
[]
["5. DALIS","AUTOMATINIO REZERVO ĮRENGIMAS P.MAŽYLIOYLIO GIMDYMO NAMUOPSE V.PUTVINSKIO G."]
[]
["Tiekėjo pasiūlymas:"]
["Nr.","Pavadinimas","Kiekis","Mato vienetas","Kaina be PVM, Eur","Suma be PVM, Eur"]
["5.","AUTOMATINIO REZERVO ĮRENGIMAS P.MAŽYLIOYLIO GIMDYMO NAMUOPSE V.PUTVINSKIO G."]
["5.1.","Automatinių jungiklių pastatymas, srovė iki 1000A žemos įtampops spintose.",2,"vnt."]
["5.2.","Automatinio pakartotinio jungimo įrenginys",1,"vnt."]
["5.3.","Viengyslio arba daugiagyslio laido vienoje pynėje iki 70mm2 skerspjūvio įtraukimas į sumontuotus vamzdžius",60,"m"]
["5.4.","Laidų ir kabelių vienvielių gyslų iki 70mm2 skerspjūvio gyslų su antgaliais prijungimas prie aparatų gnybtų.",12,"vnt."]
[null,null,null,null,null,null,{"$f":"IF((COUNT(C120:C123)<>COUNT(F120:F123)),\"Neužpildytos visų objektų kainos\", \"\")","v":"Neužpildytos visų objektų kainos"}]
[]
[null,null,null,null,null,null,"Dalies biudžetas su PVM: 7865 Eur"]

{"sheet":"Subtiekėjai ir priedai","index":1,"n_rows":100,"n_cols":11,"rows_kept":100,"cut":false,"hidden":false,"merged":[[47,0,47,9],[52,4,52,9],[50,4,50,9],[52,0,52,3],[50,0,50,3],[38,1,38,6],[37,1,37,6],[36,1,36,6],[35,1,35,6],[43,1,43,6],[42,1,42,6],[41,1,41,6],[40,1,40,6],[39,1,39,6],[32,0,32,9],[34,7,34,9],[34,1,34,6],[45,7,45,9],[42,7,42,9],[37,7,37,9],[36,7,36,9],[35,7,35,9],[44,7,44,9],[43,7,43,9],[41,7,41,9],[40,7,40,9],[39,7,39,9],[38,7,38,9],[45,1,45,6],[44,1,44,6],[1,0,2,10],[30,0,30,9],[14,5,14,7],[8,5,8,7],[7,5,7,7],[6,5,6,7],[14,8,14,9],[8,8,8,9],[7,8,7,9],[6,8,6,9],[14,0,14,1],[8,0,8,1],[7,0,7,1],[6,0,6,1],[14,2,14,4],[8,2,8,4],[7,2,7,4],[9,8,9,9],[6,2,6,4],[5,2,5,4],[5,8,5,9],[4,8,4,9],[4,5,4,7],[4,2,4,4],[4,0,4,1],[5,5,5,7],[5,0,5,1],[9,0,9,1],[13,2,13,4],[12,2,12,4],[11,2,11,4],[10,2,10,4],[9,2,9,4],[13,5,13,7],[12,5,12,7],[11,5,11,7],[10,5,10,7],[9,5,9,7],[16,0,16,10],[18,8,18,9],[18,5,18,7],[18,2,18,4],[18,0,18,1],[13,0,13,1],[12,0,12,1],[11,0,11,1],[10,0,10,1],[13,8,13,9],[12,8,12,9],[11,8,11,9],[10,8,10,9],[23,8,23,9],[22,8,22,9],[21,8,21,9],[20,8,20,9],[19,8,19,9],[28,8,28,9],[27,8,27,9],[26,8,26,9],[25,8,25,9],[24,8,24,9],[23,5,23,7],[22,5,22,7],[21,5,21,7],[20,5,20,7],[19,5,19,7],[28,5,28,7],[27,5,27,7],[26,5,26,7],[25,5,25,7],[24,5,24,7],[23,2,23,4],[22,2,22,4],[21,2,21,4],[20,2,20,4],[19,2,19,4],[28,2,28,4],[27,2,27,4],[26,2,26,4],[25,2,25,4],[24,2,24,4],[23,0,23,1],[22,0,22,1],[21,0,21,1],[20,0,20,1],[19,0,19,1],[28,0,28,1],[27,0,27,1],[26,0,26,1],[25,0,25,1],[24,0,24,1]]}
[]
["Ūkio subjektai (įskaitant kvazisubtiekėjus - fiziniai asmenys, kuriuos ketinama įdarbinti pirkimo laimėjimo atveju), kurių pajėgumais tiekėjas remiasi, kad atitiktų keliamus kvalifikacijos reikalavimus:"]
[]
[]
["Pavadinimas*",null,"Kodas, adresas",null,null,"Perduodami įsipareigojimai",null,null,"Perduodamų įsipareigojimų dalis nuo visos pirkimo sutarties (Eur arba %)",null,"Kval. Reikalavimo Nr."]
[]
[]
[]
[]
[]
[]
[]
[]
[]
[]
[]
["Subtiekėjams / subteikėjams / subrangovams numatomos perduoti veiklos (privaloma nurodyti) ir šių ūkio subjektų pavadinimai (jei žinomi):"]
[]
["Pavadinimas",null,"Kodas, adresas",null,null,"Perduodama veikla*",null,null,"Perduodamos veiklos dalis nuo visos pirkimo sutarties (Eur arba %)"]
[]
[]
[]
[]
[]
[]
[]
[]
[]
[]
[]
[]
[]
["Kartu su pasiūlymu pateikiami šie dokumentai:"]
[]
["Nr.","Dokumento  pavadinimas",null,null,null,null,null,"Dokumentas yra konfidencialus? Taip/Ne"]
[1,"Jungtinės veiklos kopija (jei taikoma)"]
[2,"Europos bendrasis viešųjų pirkimų dokumentas"]
[3,"Subtiekimo sutartis, ketinimų protokolas, preliminarios sutartys ar kiti dokumentai, patvirtinantys, kad laimėjus pirkimą tiekėjui bus prieinami kitų ūkio subjektų ištekliai (jei pasitelkiami kvalifikacijos atitikimui)"]
[]
[]
[]
[]
[]
[]
[]
[]
[]
["Pasiūlyme nurodyta Prekės kaina, išskyrus jos sudedamąsias dalis, subtiekėjai, taip pat kita informacija, kuri teisės aktų nustatyta tvarka turi būti skelbiama arba kitokiu būdu viešai prieinama visuomenei, nėra laikoma konfidencialia informacija. Konfidencialią informaciją sudaro, visų pirma, komercinė (gamybinė) paslaptis ir konfidencialieji pasiūlymų aspektai. Informacija, kurią viešai skelbti įpareigoja Lietuvos Respublikos įstatymai, negali būti tiekėjo nurodoma kaip konfidenciali, todėl, tiekėjui nurodžius tokią informaciją kaip konfidencialią, perkančioji organizacija turi teisę ją skelbti. Jei tiekėjas nenurodo konfidencialios informacijos, laikoma, kad konfidencialios informacijos tiekėjo pasiūlyme nėra. Vadovaujantis Informacijos viešinimo Centrinėje viešųjų pirkimų informacinėje sistemoje tvarkos aprašu, patvirtintu Viešųjų pirkimų tarnybos direktoriaus 2017 m. birželio 19 d. įsakymu Nr. 1S-91 „Dėl Informacijos viešinimo Centrinėje viešųjų pirkimų informacinėje sistemoje tvarkos aprašo patvirtinimo“, perkančioji organizacija laimėjusio dalyvio pasiūlymą, išskyrus informaciją, kurią tiekėjas nurodė kaip konfidencialią, paskelbs CVP IS."]
[]
[]
["Tiekėjo arba jo įgalioto asmens pareigų pavadinimas:"]
[]
["Pasirašančio asmens vardas ir pavardė:"]
[]
[]
[]
[]
[]
[]
[]
[]
[]
[]
[]
[]
[]
[]
[]
[]
[]
[]
[]
[]
[]
[]
[]
[]
[]
[]
[]
[]
[]
[]
[]
[]
[]
[]
[]
[]
[]
[]
[]
[]
[]
[]
[]
[]
[]
[]
["6790-3 2022-07-04 13:45:46"]